fUSD/lending_fUSD_20251206
["ID","MTS","AMOUNT","RATE_DAILY","PERIOD"]
[396545363,1765044673807,-500.0,0.00016986,2]
[396545364,1765044673819,-151.0,0.00016986,2]
[396545365,1765044673831,-500.0,0.00016986,2]
[396545366,1765044673842,-500.0,0.00016986,2]
[396545367,1765044673854,-500.0,0.00016986,2]
[396545368,1765044673865,-500.0,0.00016986,2]
[396545369,1765044673877,-622.76,0.00016986,2]
[396545370,1765044673888,-623.36,0.00016986,2]
[396545371,1765044673899,-813.8,0.00016986,2]
[396545372,1765044673911,-500.0,0.00016986,2]
[396545373,1765044673922,-500.0,0.00016986,2]
[396545374,1765044673933,-500.0,0.00016986,2]
[396545375,1765044673945,-500.0,0.00016986,2]
[396545376,1765044673957,-2590.35,0.00016986,2]
[396545377,1765044673968,-500.0,0.00016986,2]
[396545378,1765044673979,-517.93,0.00016986,2]
[396545379,1765044673991,-504.04401512,0.00016986,2]
[396545380,1765044674003,-291.713052,0.00016986,2]
[396545381,1765044674015,-500.0,0.00016986,2]
[396545382,1765044674028,-291.713052,0.00016986,2]
[396545383,1765044674039,-598.0949576,0.00016986,2]
[396545384,1765044674049,-500.0,0.00016986,2]
[396545385,1765044674058,-291.713052,0.00016986,2]
[396545386,1765044674068,-2615.87,0.00016986,2]
[396545387,1765044674078,-500.0,0.00016986,2]
[396545388,1765044674088,-291.713042,0.00016986,2]
[396545389,1765044674097,-500.0,0.00016986,2]
[396545390,1765044674107,-500.0,0.00016986,2]
[396545391,1765044674116,-500.0,0.00016986,2]
[396545392,1765044674125,-500.0,0.00016986,2]
[396545393,1765044674135,-500.0,0.00016986,2]
[396545394,1765044674527,-631.25,0.00016986,2]
[396545395,1765044674563,-771.54,0.00016986,2]
[396545396,1765044674588,-2432.44,0.00016986,2]
[396545397,1765044674598,-500.0,0.00016986,2]
[396545398,1765044674608,-500.0,0.00016986,2]
[396545399,1765044674618,-500.0,0.00016986,2]
[396545400,1765044674627,-500.0,0.00016986,2]
[396545401,1765044674637,-500.0,0.00016986,2]
[396545402,1765044674646,-500.0,0.00016986,2]
[396545403,1765044674656,-500.0,0.00016986,2]
[396545404,1765044674665,-619.46,0.00016986,2]
[396545405,1765044674674,-504.16999678,0.00016986,2]
[396545406,1765044674685,-249.832696,0.00016986,2]
[396545407,1765044674694,-500.0,0.00016986,2]
[396545408,1765044674704,-502.71104479,0.00016986,2]
[396545409,1765044674713,-515.52,0.00016986,2]
[396545410,1765044674722,-249.832696,0.00016986,2]
[396545411,1765044674731,-500.0,0.00016986,2]
[396545412,1765044674740,-249.832696,0.00016986,2]
[396545413,1765044674750,-249.832692,0.00016986,2]
[396545414,1765044674759,-1317.46,0.00016986,2]
[396545415,1765044674769,-500.0,0.00016986,2]
[396545416,1765044674779,-500.0,0.00016986,2]
[396545417,1765044674788,-500.0,0.00016986,2]
[396545418,1765044674797,-500.0,0.00016986,2]
[396545419,1765044674806,-500.0,0.00016986,2]
[396545420,1765044674815,-500.0,0.00016986,2]
[396545421,1765044674825,-2816.83,0.00016986,2]
[396545422,1765044674836,-151.0,0.00016986,2]
[396545423,1765044674845,-500.0,0.00016986,2]
[396545424,1765044674854,-652.44,0.00016986,2]
[396545425,1765044674864,-500.0,0.00016986,2]
[396545426,1765044674873,-151.0,0.00016986,2]
[396545427,1765044674883,-520.05597148,0.00016986,2]
[396545428,1765044674891,-1406.46,0.00016986,2]
[396545429,1765044674901,-713.81,0.00016986,2]
[396545430,1765044674910,-3599.31,0.00016986,2]
[396545431,1765044674919,-655.78,0.00016986,2]
[396545432,1765044674928,-547.49,0.00016986,2]
[396545433,1765044674937,-1028.16,0.00016986,2]
[396545434,1765044674946,-500.0,0.00016986,2]
[396545435,1765044674956,-2266.31,0.00016986,2]
[396545436,1765044674964,-2516.02,0.00016986,2]
[396545437,1765044674974,-722.38,0.00016986,2]
[396545438,1765044674983,-500.0,0.00016986,2]
[396545439,1765044674992,-2920.42,0.00016986,2]
[396545440,1765044675001,-151.0,0.00016986,2]
[396545441,1765044675010,-2249.86,0.00016986,2]
[396545442,1765044675019,-500.0,0.00016986,2]
[396545443,1765044675028,-500.0,0.00016986,2]
[396545444,1765044675038,-2460.11,0.00016986,2]
[396545445,1765044675047,-3014.08,0.00016986,2]
[396545446,1765044675056,-2832.38,0.00016986,2]
[396545447,1765044675065,-500.0,0.00016986,2]
[396545448,1765044675074,-500.0,0.00016986,2]
[396545449,1765044675083,-589.77,0.00016986,2]
[396545450,1765044675092,-500.0,0.00016986,2]
[396545451,1765044675101,-2854.53,0.00016986,2]
[396545452,1765044675111,-1527.43,0.00016986,2]
[396545453,1765044675120,-562.3916565,0.00016986,2]
[396545454,1765044675130,-500.0,0.00016986,2]
[396545455,1765044675139,-634.94975894,0.00016986,2]
[396545456,1765044675148,-500.0,0.00016986,2]
[396545457,1765044675157,-500.0,0.00016986,2]
[396545458,1765044675166,-842.95,0.00016986,2]
[396545459,1765044675175,-500.0,0.00016986,2]
[396545460,1765044675184,-500.0,0.00016986,2]
[396545461,1765044675194,-2192.5,0.00016986,2]
[396545462,1765044675204,-500.0,0.00016986,2]
[396545463,1765044675213,-811.41,0.00016986,2]
[396545464,1765044675222,-500.0,0.00016986,2]
[396545465,1765044675231,-546.3,0.00016986,2]
[396545466,1765044675241,-500.0,0.00016986,2]
[396545467,1765044675250,-2681.63,0.00016986,2]
[396545468,1765044675259,-500.0,0.00016986,2]
[396545469,1765044675268,-500.0,0.00016986,2]
[396545470,1765044675277,-504.26529306,0.00016986,2]
[396545471,1765044675286,-500.0,0.00016986,2]
[396545472,1765044675295,-1510.45,0.00016986,2]
[396545473,1765044675304,-754.09,0.00016986,2]
[396545474,1765044675313,-500.0,0.00016986,2]
[396545475,1765044675322,-500.0,0.00016986,2]
[396545476,1765044675331,-500.0,0.00016986,2]
[396545477,1765044675340,-500.0,0.00016986,2]
[396545478,1765044675348,-500.0,0.00016986,2]
[396545479,1765044675358,-1651.52,0.00016986,2]
[396545480,1765044675367,-500.0,0.00016986,2]
[396545481,1765044675376,-2809.43,0.00016986,2]
[396545482,1765044675385,-500.0,0.00016986,2]
[396545483,1765044675394,-2563.07,0.00016986,2]
[396545484,1765044675405,-871.83,0.00016986,2]
[396545485,1765044675415,-500.0,0.00016986,2]
[396545486,1765044675423,-500.0,0.00016986,2]
[396545487,1765044675431,-502.45074835,0.00016986,2]
[396545488,1765044675440,-500.0,0.00016986,2]
[396545489,1765044675450,-500.0,0.00016986,2]
[396545490,1765044675460,-2501.96,0.00016986,2]
[396545491,1765044675472,-500.0,0.00016986,2]
[396545492,1765044675482,-707.56,0.00016986,2]
[396545493,1765044675491,-539.32728333,0.00016986,2]
[396545494,1765044675500,-500.0,0.00016986,2]
[396545495,1765044675510,-500.0,0.00016986,2]
[396545496,1765044675519,-530.34,0.00016986,2]
[396545497,1765044675529,-617.36,0.00016986,2]
[396545498,1765044675538,-500.0,0.00016986,2]
[396545499,1765044675548,-4820.97,0.00016986,2]
[396545500,1765044675557,-500.0,0.00016986,2]
[396545501,1765044675567,-816.7,0.00016986,2]
[396545502,1765044675575,-2912.16,0.00016986,2]
[396545503,1765044675585,-1939.75,0.00016986,2]
[396545504,1765044675594,-500.0,0.00016986,2]
[396545505,1765044675603,-500.0,0.00016986,2]
[396545506,1765044675612,-813.7,0.00016986,2]
[396545507,1765044675621,-500.0,0.00016986,2]
[396545508,1765044675630,-2138.32,0.00016986,2]
[396545509,1765044675640,-3103.78,0.00016986,2]
[396545510,1765044675649,-672.86,0.00016986,2]
[396545511,1765044675659,-500.0,0.00016986,2]
[396545512,1765044675668,-6038.19,0.00016986,2]
[396545513,1765044675677,-553.26748407,0.00016986,2]
[396545514,1765044675686,-2704.58,0.00016986,2]
[396545515,1765044675695,-500.0,0.00016986,2]
[396545516,1765044675704,-2819.95,0.00016986,2]
[396545517,1765044675713,-1060.04,0.00016986,2]
[396545518,1765044675722,-500.0,0.00016986,2]
[396545519,1765044675731,-500.0,0.00016986,2]
[396545520,1765044675741,-582.77,0.00016986,2]
[396545521,1765044675750,-3028.36,0.00016986,2]
[396545522,1765044675759,-503.01531954,0.00016986,2]
[396545523,1765044675769,-9696.65,0.00016986,2]
[396545525,1765044675778,-505.13177428,0.00016986,2]
[396545526,1765044675787,-1685.3,0.00016986,2]
[396545527,1765044675797,-500.0,0.00016986,2]
[396545528,1765044675806,-735.79,0.00016986,2]
[396545529,1765044675815,-2431.65,0.00016986,2]
[396545530,1765044675824,-500.0,0.00016986,2]
[396545531,1765044675833,-638.39,0.00016986,2]
[396545532,1765044675843,-760.71,0.00016986,2]
[396545533,1765044675852,-2260.78,0.00016986,2]
[396545534,1765044675861,-1080.87,0.00016986,2]
[396545535,1765044675871,-500.0,0.00016986,2]
[396545536,1765044675880,-529.86,0.00016986,2]
[396545537,1765044675890,-500.0,0.00016986,2]
[396545538,1765044675900,-500.0,0.00016986,2]
[396545539,1765044675909,-1479.07,0.00016986,2]
[396545540,1765044675920,-632.8,0.00016986,2]
[396545541,1765044675930,-500.0,0.00016986,2]
[396545542,1765044675940,-221.31105486,0.00016986,2]
[396545543,1765044675950,-500.0,0.00016986,2]
[396545544,1765044675959,-840.79,0.00016986,2]
[396545545,1765044675970,-2854.52,0.00016986,2]
[396545546,1765044675979,-500.0,0.00016986,2]
[396545547,1765044675988,-560.16,0.00016986,2]
[396545548,1765044675998,-500.0,0.00016986,2]
[396545549,1765044676007,-500.0,0.00016986,2]
[396545550,1765044676018,-2654.06,0.00016986,2]
[396545551,1765044676027,-524.54633434,0.00016986,2]
[396545552,1765044676037,-500.0,0.00016986,2]
[396545553,1765044676046,-505.55512733,0.00016986,2]
[396545554,1765044676055,-500.0,0.00016986,2]
[396545555,1765044676064,-2329.63,0.00016986,2]
[396545556,1765044676073,-500.0,0.00016986,2]
[396545557,1765044676083,-500.0,0.00016986,2]
[396545558,1765044676092,-609.08,0.00016986,2]
[396545559,1765044676101,-500.0,0.00016986,2]
[396545560,1765044676110,-3238.48,0.00016986,2]
[396545561,1765044676119,-500.0,0.00016986,2]
[396545562,1765044676128,-500.0,0.00016986,2]
[396545563,1765044676137,-500.0,0.00016986,2]
[396545564,1765044676146,-515.6,0.00016986,2]
[396545565,1765044676155,-2164.32,0.00016986,2]
[396545566,1765044676164,-543.22,0.00016986,2]
[396545567,1765044676173,-500.0,0.00016986,2]
[396545568,1765044676182,-855.06,0.00016986,2]
[396545569,1765044676191,-1261.52,0.00016986,2]
[396545570,1765044676200,-3225.66,0.00016986,2]
[396545571,1765044676209,-500.0,0.00016986,2]
[396545572,1765044676219,-2778.5,0.00016986,2]
[396545573,1765044676228,-500.0,0.00016986,2]
[396545574,1765044676237,-634.16,0.00016986,2]
[396545575,1765044676247,-2820.48,0.00016986,2]
[396545576,1765044676256,-500.0,0.00016986,2]
[396545577,1765044676265,-2487.54,0.00016986,2]
[396545578,1765044676274,-561.78,0.00016986,2]
[396545579,1765044676284,-502.51,0.00016986,2]
[396545580,1765044676293,-2963.08,0.00016986,2]
[396545581,1765044676302,-618.34,0.00016986,2]
[396545582,1765044676312,-782.97,0.00016986,2]
[396545583,1765044676321,-2382.89,0.00016986,2]
[396545584,1765044676330,-1000.0,0.00016986,2]
[396545585,1765044676339,-500.0,0.00016986,2]
[396545586,1765044676348,-500.0,0.00016986,2]
[396545587,1765044676357,-500.0,0.00016986,2]
[396545588,1765044676366,-500.0,0.00016986,2]
[396545589,1765044676376,-3802.47,0.00016986,2]
[396545590,1765044676386,-10347.11,0.00016986,2]
[396545591,1765044676395,-1282.48,0.00016986,2]
[396545592,1765044676404,-500.0,0.00016986,2]
[396545593,1765044676413,-2985.73,0.00016986,2]
[396545594,1765044676423,-500.0,0.00016986,2]
[396545595,1765044676432,-500.0,0.00016986,2]
[396545596,1765044676441,-1277.67,0.00016986,2]
[396545597,1765044676451,-508.96,0.00016986,2]
[396545598,1765044676460,-500.0,0.00016986,2]
[396545599,1765044676469,-2254.14,0.00016986,2]
[396545600,1765044676478,-701.36,0.00016986,2]
[396545601,1765044676487,-500.0,0.00016986,2]
[396545602,1765044676497,-500.0,0.00016986,2]
[396545603,1765044676506,-500.0,0.00016986,2]
[396545604,1765044676515,-600.55,0.00016986,2]
[396545605,1765044676524,-645.36,0.00016986,2]
[396545606,1765044676533,-500.0,0.00016986,2]
[396545607,1765044676543,-2703.88,0.00016986,2]
[396545608,1765044676552,-500.0,0.00016986,2]
[396545609,1765044676561,-2606.62,0.00016986,2]
[396545610,1765044676571,-537.54,0.00016986,2]
[396545611,1765044676581,-502.45584139,0.00016986,2]
[396545612,1765044676590,-2890.26,0.00016986,2]
[396545613,1765044676599,-1962.75,0.00016986,2]
[396545614,1765044676608,-500.0,0.00016986,2]
[396545615,1765044676617,-500.0,0.00016986,2]
[396545616,1765044676627,-500.0,0.00016986,2]
[396545617,1765044676636,-2697.87,0.00016986,2]
[396545618,1765044676646,-500.0,0.00016986,2]
[396545619,1765044676656,-610.58,0.00016986,2]
[396545620,1765044676665,-2923.32,0.00016986,2]
[396545621,1765044676674,-539.57,0.00016986,2]
[396545622,1765044676683,-2394.64,0.00016986,2]
[396545623,1765044676693,-500.0,0.00016986,2]
[396545624,1765044676703,-500.0,0.00016986,2]
[396545625,1765044676712,-500.0,0.00016986,2]
[396545626,1765044676721,-3000.09,0.00016986,2]
[396545627,1765044676730,-500.0,0.00016986,2]
[396545628,1765044676739,-500.0,0.00016986,2]
[396545629,1765044676748,-500.0,0.00016986,2]
[396545630,1765044676757,-500.0,0.00016986,2]
[396545631,1765044676767,-500.0,0.00016986,2]
[396545632,1765044676776,-500.0,0.00016986,2]
[396545633,1765044676786,-2901.21,0.00016986,2]
[396545634,1765044676795,-500.0,0.00016986,2]
[396545635,1765044676805,-500.0,0.00016986,2]
[396545636,1765044676814,-500.0,0.00016986,2]
[396545637,1765044676823,-500.0,0.00016986,2]
[396545638,1765044676833,-2818.57,0.00016986,2]
[396545639,1765044676843,-500.0,0.00016986,2]
[396545640,1765044676852,-610.97,0.00016986,2]
[396545641,1765044676861,-500.0,0.00016986,2]
[396545642,1765044676871,-503.76,0.00016986,2]
[396545643,1765044676880,-500.0,0.00016986,2]
[396545644,1765044676890,-2934.49,0.00016986,2]
[396545645,1765044676899,-500.0,0.00016986,2]
[396545646,1765044676908,-500.0,0.00016986,2]
[396545647,1765044676918,-500.0,0.00016986,2]
[396545648,1765044676927,-8229.13,0.00016986,2]
[396545649,1765044676937,-789.15,0.00016986,2]
[396545650,1765044676947,-975.56,0.00016986,2]
[396545651,1765044676956,-2998.67,0.00016986,2]
[396545652,1765044676965,-533.69,0.00016986,2]
[396545653,1765044676977,-500.0,0.00016986,2]
[396545654,1765044676986,-1231.47,0.00016986,2]
[396545655,1765044676995,-2882.59,0.00016986,2]
[396545656,1765044677005,-2274.42,0.00016986,2]
[396545657,1765044677015,-1728.32,0.00016986,2]
[396545658,1765044677024,-500.0,0.00016986,2]
[396545659,1765044677034,-500.0,0.00016986,2]
[396545660,1765044677043,-1440.21,0.00016986,2]
[396545661,1765044677053,-748.43,0.00016986,2]
[396545662,1765044677062,-755.95,0.00016986,2]
[396545663,1765044677071,-2713.58,0.00016986,2]
[396545664,1765044677081,-500.0,0.00016986,2]
[396545665,1765044677090,-500.0,0.00016986,2]
[396545666,1765044677099,-10348.9,0.00016986,2]
[396545667,1765044677109,-777.68,0.00016986,2]
[396545668,1765044677118,-591.11,0.00016986,2]
[396545669,1765044677127,-500.0,0.00016986,2]
[396545670,1765044677137,-653.94,0.00016986,2]
[396545671,1765044677147,-512.28974765,0.00016986,2]
[396545672,1765044677156,-500.0,0.00016986,2]
[396545673,1765044677166,-2547.22,0.00016986,2]
[396545674,1765044677176,-3319.82,0.00016986,2]
[396545675,1765044677186,-500.0,0.00016986,2]
[396545676,1765044677195,-500.0,0.00016986,2]
[396545677,1765044677205,-500.0,0.00016986,2]
[396545678,1765044677214,-500.0,0.00016986,2]
[396545679,1765044677223,-500.0,0.00016986,2]
[396545680,1765044677233,-785.11,0.00016986,2]
[396545681,1765044677242,-796.48,0.00016986,2]
[396545682,1765044677251,-3180.34,0.00016986,2]
[396545683,1765044677261,-500.0,0.00016986,2]
[396545684,1765044677270,-4064.82,0.00016986,2]
[396545685,1765044677279,-500.0,0.00016986,2]
[396545686,1765044677288,-500.0,0.00016986,2]
[396545687,1765044677297,-2315.49,0.00016986,2]
[396545688,1765044677307,-500.0,0.00016986,2]
[396545689,1765044677316,-743.77,0.00016986,2]
[396545690,1765044677326,-573.58,0.00016986,2]
[396545691,1765044677336,-2934.07,0.00016986,2]
[396545692,1765044677345,-549.13,0.00016986,2]
[396545693,1765044677355,-2021.69,0.00016986,2]
[396545694,1765044677364,-631.06,0.00016986,2]
[396545695,1765044677373,-1580.34,0.00016986,2]
[396545696,1765044677578,-500.0,0.00016986,2]
[396545697,1765044677595,-2709.32,0.00016986,2]
[396545698,1765044677605,-500.0,0.00016986,2]
[396545699,1765044677614,-500.0,0.00016986,2]
[396545700,1765044677623,-500.0,0.00016986,2]
[396545701,1765044677633,-500.0,0.00016986,2]
[396545702,1765044677642,-555.62,0.00016986,2]
[396545703,1765044677651,-500.0,0.00016986,2]
[396545704,1765044677660,-500.0,0.00016986,2]
[396545705,1765044677670,-500.0,0.00016986,2]
[396545706,1765044677680,-500.0,0.00016986,2]
[396545707,1765044677690,-1477.42,0.00016986,2]
[396545708,1765044677699,-500.0,0.00016986,2]
[396545709,1765044677708,-3102.62,0.00016986,2]
[396545710,1765044677717,-488.69612702,0.00016986,2]
[396545711,1765044677726,-500.0,0.00016986,2]
[396545712,1765044677736,-500.0,0.00016986,2]
[396545713,1765044677745,-577.55,0.00016986,2]
[396545714,1765044677754,-2795.09,0.00016986,2]
[396545715,1765044677763,-500.0,0.00016986,2]
[396545716,1765044677773,-500.0,0.00016986,2]
[396545717,1765044677782,-897.39,0.00016986,2]
[396545718,1765044677792,-500.0,0.00016986,2]
[396545719,1765044677801,-708.65,0.00016986,2]
[396545720,1765044677810,-500.0,0.00016986,2]
[396545721,1765044677820,-2552.91,0.00016986,2]
[396545722,1765044677830,-739.23,0.00016986,2]
[396545723,1765044677839,-626.74,0.00016986,2]
[396545724,1765044677848,-500.0,0.00016986,2]
[396545725,1765044677857,-524.72,0.00016986,2]
[396545726,1765044677866,-500.0,0.00016986,2]
[396545727,1765044677875,-1240.55,0.00016986,2]
[396545728,1765044677886,-500.0,0.00016986,2]
[396545729,1765044677896,-500.0,0.00016986,2]
[396545730,1765044677905,-500.0,0.00016986,2]
[396545731,1765044677915,-244.70499656,0.00016986,2]
[396545732,1765044677925,-1053.76,0.00016986,2]
[396545733,1765044677935,-500.0,0.00016986,2]
[396545734,1765044677945,-500.0,0.00016986,2]
[396545735,1765044677954,-545.97633085,0.00016986,2]
[396545736,1765044677963,-3168.28,0.00016986,2]
[396545737,1765044677972,-502.28,0.00016986,2]
[396545738,1765044677981,-500.0,0.00016986,2]
[396545739,1765044677991,-500.0,0.00016986,2]
[396545740,1765044678001,-962.99,0.00016986,2]
[396545741,1765044678010,-500.0,0.00016986,2]
[396545742,1765044678025,-500.0,0.00016986,2]
[396545743,1765044678034,-4416.74,0.00016986,2]
[396545744,1765044678048,-2820.43,0.00016986,2]
[396545745,1765044678057,-500.0,0.00016986,2]
[396545747,1765044678067,-1204.35,0.00016986,2]
[396545748,1765044678076,-1635.42,0.00016986,2]
[396545749,1765044678085,-500.0,0.00016986,2]
[396545750,1765044678094,-649.84,0.00016986,2]
[396545751,1765044678104,-2602.71,0.00016986,2]
[396545752,1765044678114,-500.0,0.00016986,2]
[396545753,1765044678124,-500.0,0.00016986,2]
[396545754,1765044678134,-500.0,0.00016986,2]
[396545755,1765044678143,-500.0,0.00016986,2]
[396545756,1765044678152,-500.0,0.00016986,2]
[396545757,1765044678161,-867.01,0.00016986,2]
[396545758,1765044678171,-1201.62,0.00016986,2]
[396545759,1765044678180,-500.0,0.00016986,2]
[396545760,1765044678189,-500.0,0.00016986,2]
[396545761,1765044678198,-500.0,0.00016986,2]
[396545762,1765044678208,-1173.48,0.00016986,2]
[396545763,1765044678217,-500.0,0.00016986,2]
[396545764,1765044678226,-500.0,0.00016986,2]
[396545765,1765044678235,-3341.0,0.00016986,2]
[396545766,1765044678245,-54390.99,0.00016986,2]
[396545767,1765044678254,-150.0,0.00016986,2]
[396545769,1765044678263,-150.0,0.00016986,2]
[396545770,1765044678273,-150.0,0.00016986,2]
[396545771,1765044678282,-150.0,0.00016986,2]
[396545772,1765044678291,-150.0,0.00016986,2]
[396545773,1765044678301,-150.0,0.00016986,2]
[396545774,1765044678310,-998.28861691,0.0001699,2]
[396545775,1765044678319,-998.28861691,0.0001699,2]
[396545776,1765044678329,-942.70377857,0.00016996,2]
[396545777,1765044678340,-300.0,0.00016999,2]
[396545778,1765044678350,-1850.32,0.00016999,2]
[396545779,1765044678360,-1850.32,0.00016999,2]
[396545780,1765044678369,-1850.32,0.00016999,2]
[396545781,1765044678378,-1850.32,0.00016999,2]
[396545782,1765044678387,-1850.32,0.00016999,2]
[396545783,1765044678397,-1850.32,0.00016999,2]
[396545784,1765044678406,-1850.32,0.00016999,2]
[396545785,1765044678415,-1850.32,0.00016999,2]
[396545786,1765044678425,-1850.32,0.00016999,2]
[396545787,1765044678438,-1850.32,0.00016999,2]
[396545788,1765044678447,-1850.32,0.00016999,2]
[396545789,1765044678456,-1850.42096353,0.00016999,2]
[396545790,1765044678468,-1022263.38813432,0.00017,2]
[396545791,1765044678477,-160.0,0.00017,2]
[396545792,1765044678487,-1840645.90373358,0.00017,2]
[396545794,1765044679103,-699.70301262,0.00017,2]
[396545795,1765044679123,-243476.53114352,0.00017,2]
[396545796,1765044679139,-2200.00009843,0.00017,2]
[396545797,1765044679151,-1839.138,0.00017,2]
[396545798,1765044679165,-1800.02004252,0.00017,2]
[396545800,1765044679625,-748.63230573,0.00016072,2]
[396545801,1765044679637,-340.86111214,0.00016072,2]
[396545802,1765044679667,-348.2497953,0.00016072,2]
[396545803,1765044679678,-2316.21819412,0.00016072,2]
[396545805,1765044679921,-953.03859271,0.00016072,2]
[396545806,1765044679930,-261.122699,0.00016438,2]
[396545807,1765044679939,-261.122699,0.00016438,2]
[396545808,1765044679949,-261.122699,0.00016644,2]
[396545809,1765044679958,-1087542.70050776,0.00017,2]
[396545810,1765044679969,-1339.42835963,0.00017,2]
[396545811,1765044679978,-151.0,0.00017,2]
[396545812,1765044679987,-151.0,0.00017,2]
[396545813,1765044679997,-151.0,0.00017,2]
[396545814,1765044680006,-151.0,0.00017,2]
[396545815,1765044680015,-215.750823,0.00017,2]
[396545816,1765044680024,-151.0,0.00017,2]
[396545817,1765044680033,-151.0,0.00017,2]
[396545818,1765044680042,-151.0,0.00017,2]
[396545819,1765044680053,-151.0,0.00017,2]
[396545820,1765044680062,-154.584294,0.00017,2]
[396545821,1765044680071,-151.0,0.00017,2]
[396545822,1765044680080,-151.0,0.00017,2]
[396545823,1765044680089,-151.0,0.00017,2]
[396545824,1765044680098,-151.0,0.00017,2]
[396545825,1765044680107,-183.459894,0.00017,2]
[396545826,1765044680116,-151.0,0.00017,2]
[396545827,1765044680126,-151.0,0.00017,2]
[396545828,1765044680138,-2000.0,0.00017,2]
[396545829,1765044680149,-646.04224,0.00017,2]
[396545830,1765044680158,-250.0,0.00017,2]
[396545831,1765044680167,-422.50002317,0.00017021,2]
[396545832,1765044680177,-200.0,0.00017048,2]
[396545833,1765044680186,-608.88249167,0.0001705,2]
[396545834,1765044680196,-168.0,0.00017108,2]
[396545836,1765044680206,-500.0,0.00017123,2]
[396545837,1765044680215,-168.0,0.00017133,2]
[396545838,1765044680223,-166.66,0.00017136,2]
[396545839,1765044680233,-608.88249167,0.0001716,2]
[396545840,1765044680243,-168.0,0.00017189,2]
[396545841,1765044680252,-635.1,0.00017201,2]
[396545842,1765044680262,-942.70377857,0.00017222,2]
[396545843,1765044680272,-500.0,0.0001726,2]
[396545844,1765044680281,-500.0,0.0001726,2]
[396545845,1765044680290,-500.0,0.0001726,2]
[396545846,1765044680300,-500.0,0.0001726,2]
[396545847,1765044680309,-500.0,0.0001726,2]
[396545848,1765044680319,-501.21,0.0001726,2]
[396545849,1765044680329,-500.0,0.0001726,2]
[396545850,1765044680338,-2158.2,0.0001726,2]
[396545851,1765044680348,-500.0,0.0001726,2]
[396545852,1765044680358,-2850.34,0.0001726,2]
[396545853,1765044680367,-500.0,0.0001726,2]
[396545854,1765044680376,-475.58154823,0.0001726,2]
[396545855,1765044680385,-500.0,0.0001726,2]
[396545856,1765044680395,-500.0,0.0001726,2]
[396545857,1765044680403,-500.0,0.0001726,2]
[396545858,1765044680413,-500.0,0.0001726,2]
[396545859,1765044680423,-500.0,0.0001726,2]
[396545860,1765044680432,-500.0,0.0001726,2]
[396545861,1765044680442,-500.0,0.0001726,2]
[396545862,1765044680451,-223.07074864,0.0001726,2]
[396545863,1765044680463,-500.0,0.0001726,2]
[396545864,1765044680475,-500.0,0.0001726,2]
[396545865,1765044680485,-505.03987487,0.0001726,2]
[396545866,1765044680494,-500.0,0.0001726,2]
[396545867,1765044680503,-2666.76,0.0001726,2]
[396545868,1765044680514,-500.0,0.0001726,2]
[396545869,1765044680523,-500.0,0.0001726,2]